[Event "Stockholm Elo Challenge 2019"]
[Site "Stockholm"]
[Date "2019.06.01"]
[Round "5.4"]
[White "Helin, Mikael"]
[Black "Jansson, Gilbert"]
[Result "1-0"]
[ECO "B20"]
[WhiteElo "1898"]
[BlackElo "1892"]
[Annotator "NA"]
[PlyCount "79"]
[EventDate "2019.05.29"]
[EventType "swiss"]
[EventCountry "SWE"]
[SourceTitle "playchess.com"]
[Source "ChessBase"]
[SourceQuality "1"]
[TimeControl "40/5400+30:1800+30"]

1. e4 {[%emt 0:12:02]} c5 {[%emt 0:00:00]} 2. c4 {[%emt 0:01:04]} d6 {[%emt 0:00:24]} 3. Nc3 {[%emt 0:00:08]} Nf6 {[%emt 0:00:34]} 4. g3 {[%emt 0:00:25]} g6 {[%emt 0:00:34]} 5. h3 {[%emt 0:00:22]} Bg7 {[%emt 0:00:30]} 6. Bg2 {[%emt 0:01:35]} Nc6 {[%emt 0:01:04]} 7. Nge2 {[%emt 0:01:16]} Bd7 {[%emt 0:02:27]} 8. d3 {[%emt 0:00:41]} O-O {[%emt 0:01:15]} 9. O-O {[%emt 0:01:52]} Rb8 {[%emt 0:08:28]} 10. f4 {[%emt 0:00:15]} a6 {[%emt 0:00:32]} 11. g4 {[%emt 0:00:40] A36: Symmetrical English vs ...g6: 4 Bg2 Bg7} (11. a4 Ne8 12. Be3 Nd4 13. Rb1 b5 14. axb5 axb5 15. cxb5 Bxb5 16. g4 Nc7 17. Ng3 e6 18. f5 Qh4 19. Bf2 Qg5 20. h4 Qd8 {1-0 (41) Kramnik,V (2791)-Radjabov,T (2744) Moscow 2010}) 11... b5 {[%emt 0:07:19]} 12. Ng3 {[%emt 0:03:27]} b4 {[%emt 0:03:50]} 13. Nce2 {[%emt 0:00:23]} Qc8 {[%emt 0:00:33]} 14. g5 $146 {[%emt 0:00:35]} ({Predecessor:} 14. Kh2 Ne8 15. f5 Ne5 16. Rb1 f6 17. Nf4 g5 18. Nd5 Qd8 {½-½ (18) Knio,K-El Jawish,A (2055) Beirut 1998}) 14... Ne8 {[%emt 0:00:30]} 15. f5 {[%emt 0:00:05]} Nd4 {[%emt 0:02:16]} 16. Nf4 {[%emt 0:02:10]} Bc6 {[%emt 0:02:43]} 17. h4 {[%emt 0:06:25]} gxf5 {[%emt 0:10:35]} 18. Bh3 {[%emt 0:02:05]} e6 {[%emt 0:02:22]} 19. exf5 {[%emt 0:00:33]} Nxf5 {[%emt 0:02:31]} 20. Nxf5 {[%emt 0:01:55]} exf5 {[%emt 0:00:30]} 21. Nd5 {[%emt 0:00:30]} Bxd5 {[%emt 0:00:30]} 22. cxd5 {[%emt 0:00:30]} Bd4+ {[%emt 0:01:17]} 23. Kh1 {[%emt 0:01:12]} Qb7 {[%emt 0:07:34]} 24. Qf3 {[%emt 0:02:11]} Ng7 {[%emt 0:09:28]} 25. h5 {[%emt 0:00:45]} Qe7 {[%emt 0:02:57]} 26. h6 {[%emt 0:00:24]} Ne8 {[%emt 0:00:23]} 27. Bf4 {[%emt 0:02:36]} Bxb2 {[%emt 0:06:23]} 28. Rae1 {[%emt 0:00:02]} Qd7 {[%emt 0:09:59]} 29. Bh2 {[%emt 0:03:27]} Rb7 {[%emt 0:05:46]} 30. Rg1 {[%emt 0:01:22]} Bd4 {[%emt 0:00:42]} 31. Rg2 {[%emt 0:01:20]} ({White should try} 31. Bxf5 $18 Qd8 32. Rg2) 31... Bc3 $2 {[%emt 0:01:07]} ({Black should play} 31... Qd8 $14) 32. Reg1 {[%emt 0:01:47]} Bd4 {[%emt 0:00:19]} 33. Bxf5 {[%emt 0:00:54]} Qe7 {[%emt 0:02:39]} 34. Be4 $14 {[%emt 0:01:02]} ({Only move:} 34. Re2 $18 Qc7 35. Rgg2) 34... Qd7 {[%emt 0:03:20]} 35. Rf1 {[%emt 0:02:01]} Kh8 {[%emt 0:01:20]} 36. Qh5 {[%emt 0:05:27]} Be5 {[%emt 0:03:30]} 37. g6 {[%emt 0:01:32]} hxg6 {[%emt 0:00:22]} 38. Qxg6 {[%emt 0:04:04]} fxg6 {[%emt 0:00:47]} 39. Rxf8+ {[%emt 0:00:07]} Kh7 {[%emt 0:00:12]} 40. Rxg6 {[%emt 0:07:41]} 1-0

[Event "Stockholm Elo Challenge 2019"]
[Site "Stockholm"]
[Date "2019.06.01"]
[Round "5.5"]
[White "Mayrany, Fargalla"]
[Black "Molin, Nils"]
[Result "0-1"]
[ECO "E62"]
[WhiteElo "1863"]
[BlackElo "1816"]
[Annotator "NA"]
[PlyCount "46"]
[EventDate "2019.05.29"]
[EventType "swiss"]
[EventCountry "SWE"]
[SourceTitle "playchess.com"]
[Source "ChessBase"]
[SourceQuality "1"]
[TimeControl "40/5400+30:1800+30"]

1. Nf3 {[%emt 0:00:00]} Nf6 {[%emt 0:00:11]} 2. c4 {[%emt 0:00:00]} g6 {[%emt 0:00:25]} 3. Nc3 {[%emt 0:00:06]} Bg7 {[%emt 0:00:16]} 4. d4 {[%emt 0:00:15]} d6 {[%emt 0:00:14]} 5. g3 {[%emt 0:00:33]} O-O {[%emt 0:00:41]} 6. Bg2 {[%emt 0:00:04]} Nc6 {[%emt 0:03:46]} 7. O-O {[%emt 0:00:18]} e5 {[%emt 0:00:47]} 8. e4 {[%emt 0:05:05]} Bg4 {[%emt 0:02:43]} 9. Be3 {[%emt 0:07:50]} exd4 {[%emt 0:02:18]} 10. Bxd4 {[%emt 0:00:52]} Nxd4 {[%emt 0:00:10]} 11. Qxd4 {[%emt 0:00:08]} Re8 {[%emt 0:01:17]} 12. Qd3 {[%emt 0:02:36]} Qd7 {[%emt 0:06:33]} 13. Rfe1 {[%emt 0:00:53]} a6 {[%emt 0:02:15]} 14. Nd4 {[%emt 0:11:25]} Bh3 {[%emt 0:04:33]} 15. Bh1 {[%emt 0:00:04]} Rab8 {[%emt 0:02:31]} 16. Rad1 {[%emt 0:04:49]} Re5 {[%emt 0:10:36]} 17. Nde2 {[%emt 0:13:55]} g5 {[%emt 0:10:56]} 18. f3 {[%emt 0:12:18]} b5 {[%emt 0:01:59]} 19. Nd5 {[%emt 0:01:54]} bxc4 {[%emt 0:01:53]} 20. Qxc4 {[%emt 0:11:57]} Nxd5 {[%emt 0:01:10]} 21. exd5 {[%emt 0:03:04]} Rxb2 {[%emt 0:01:02]} 22. Rb1 {[%emt 0:04:41]} Rexe2 {[%emt 0:03:26]} 23. Qxe2 {[%emt 0:03:53]} Bd4+ {[%emt 0:02:00]} 0-1

[Event "Stockholm Elo Challenge 2019"]
[Site "Stockholm"]
[Date "2019.06.01"]
[Round "5.6"]
[White "Thiborg, Jesper"]
[Black "Skahlberg Bjerknes-Lima de Far, Warg"]
[Result "1-0"]
[ECO "A45"]
[WhiteElo "2085"]
[BlackElo "1691"]
[Annotator "NA"]
[PlyCount "103"]
[EventDate "2019.05.29"]
[EventType "swiss"]
[EventCountry "SWE"]
[SourceTitle "playchess.com"]
[Source "ChessBase"]
[SourceQuality "1"]
[TimeControl "40/5400+30:1800+30"]

1. d4 Nf6 2. Bf4 d5 3. e3 Bf5 4. c4 e6 5. Nc3 (5. Nf3 Bxb1 6. Rxb1 Bb4+ 7. Ke2 dxc4 8. Qa4+ Nc6 9. Ne5 a5 10. Nxc6 Qd7 11. Rc1 Nd5 12. Rxc4 Nb6 13. Qc2 Nxc4 14. Nxb4 Nxb2 {1-0 (41) Nakamura,H (2769)-Giri,A (2782) Leuven 2018}) 5... Bd6 6. Bg3 {D00: 1 d4 d5: Unusual lines} c6 7. Qb3 Bxg3 8. hxg3 Qc7 9. Rc1 Nbd7 10. Nf3 $146 ({Predecessor:} 10. cxd5 cxd5 11. Nf3 Ne4 {½-½ (22) Tuerlinckx,B (1958)-Vandersmissen,H (1754) Lommel 2012}) 10... Rc8 11. Be2 Ne4 12. Nxe4 Bxe4 13. O-O O-O 14. Rfd1 Nb6 15. Nd2 Bg6 16. a4 Nd7 17. Qc3 Nf6 18. b4 Ne4 19. Qb3 Nxd2 20. Rxd2 Qd7 21. b5 cxb5 22. axb5 dxc4 23. Bxc4 Rc7 24. Ra1 Rfc8 25. Ra4 h6 26. Rb4 Qd6 27. Ra2 b6 28. Ra6 Qe7 29. Rba4 $1 Rd8 30. Qa2 Rdd7 31. Ra3 Be4 32. Qe2 e5 33. dxe5 Qxe5 34. R6a4 Bd5 35. Bd3 $1 Be6 $11 36. Qf3 Bd5 37. Qf5 Qxf5 38. Bxf5 Re7 39. Rd4 Re5 40. e4 g6 41. f4 Ree7 42. Rxd5 gxf5 43. e5 Rc5 44. Rad3 Rec7 45. Kf2 Rc2+ 46. Kf3 Rb2 47. g4 fxg4+ 48. Kxg4 Rxg2+ 49. Kf5 Rg6 50. Rd8+ Kg7 51. Ra8 Re6 52. Rdd8 1-0

[Event "Stockholm Elo Challenge 2019"]
[Site "Stockholm"]
[Date "2019.06.01"]
[Round "6.1"]
[White "Grahn, Vidar"]
[Black "Karlsson, Lars"]
[Result "0-1"]
[ECO "B34"]
[WhiteElo "1976"]
[BlackElo "2448"]
[Annotator "ChessBase"]
[PlyCount "48"]
[EventDate "2019.05.29"]
[EventType "swiss"]
[EventCountry "SWE"]
[SourceTitle "playchess.com"]
[Source "ChessBase"]
[SourceQuality "1"]
[TimeControl "40/5400+30:1800+30"]

1. e4 {[%emt 0:00:00]} c5 {[%emt 0:00:06]} 2. Nf3 {[%emt 0:00:00]} Nc6 {[%emt 0:00:02]} 3. d4 {[%emt 0:00:00]} cxd4 {[%emt 0:00:02]} 4. Nxd4 {[%emt 0:00:08]} Nf6 {[%emt 0:00:04]} 5. Nc3 {[%emt 0:00:20]} e5 {[%emt 0:00:10]} 6. Ndb5 {[%emt 0:01:03]} h6 {[%emt 0:00:06]} 7. Nd6+ {[%emt 0:03:16]} Bxd6 {[%emt 0:00:02]} 8. Qxd6 {[%emt 0:00:06]} Qe7 {[%emt 0:00:04]} 9. Qxe7+ {[%emt 0:02:46]} Kxe7 {[%emt 0:00:03]} 10. Be3 {[%emt 0:02:06]} d6 {[%emt 0:00:04]} 11. O-O-O {[%emt 0:01:43]} Be6 {[%emt 0:00:12]} 12. f3 {[%emt 0:03:13]} a6 {[%emt 0:08:07]} 13. Nd5+ {[%emt 0:02:01]} Bxd5 {[%emt 0:01:31]} 14. exd5 {[%emt 0:00:16]} Nb4 {[%emt 0:01:00]} 15. Bc4 {[%emt 0:01:43]} Rhc8 {[%emt 0:00:21]} 16. Bb3 {[%emt 0:00:56]} a5 {[%emt 0:00:23]} 17. a3 {[%emt 0:08:44]} a4 {[%emt 0:03:07]} 18. axb4 {[%emt 0:03:07]} axb3 {[%emt 0:00:06]} 19. c3 {[%emt 0:00:44]} Ra1+ {[%emt 0:00:59]} 20. Kd2 {[%emt 0:00:24]} Ra2 {[%emt 0:00:07]} 21. Kc1 {[%emt 0:01:28]} b5 {[%emt 0:00:29]} 22. Rhe1 {[%emt 0:07:30]} Rca8 {[%emt 0:01:39]} 23. f4 {[%emt 0:06:50]} Ne4 {[%emt 0:00:44]} 24. Ba7 {[%emt 0:03:21]} Ra1# {Be3 Nf6+} 0-1

[Event "Stockholm Elo Challenge 2019"]
[Site "Stockholm"]
[Date "2019.06.01"]
[Round "6.2"]
[White "Molin, Nils"]
[Black "Helin, Mikael"]
[Result "0-1"]
[ECO "B00"]
[WhiteElo "1816"]
[BlackElo "1898"]
[Annotator "NA"]
[PlyCount "46"]
[EventDate "2019.05.29"]
[EventType "swiss"]
[EventCountry "SWE"]
[SourceTitle "playchess.com"]
[Source "ChessBase"]
[SourceQuality "1"]
[TimeControl "40/5400+30:1800+30"]

1. e4 {[%emt 0:00:32]} d6 {[%emt 0:00:00]} 2. Nf3 {[%emt 0:00:19]} e5 {[%emt 0:00:52]} 3. d3 {[%emt 0:03:27]} Nf6 {[%emt 0:01:29]} 4. g3 {[%emt 0:00:11]} Be7 {[%emt 0:00:46]} 5. Bg2 {[%emt 0:00:08]} c6 {[%emt 0:00:12]} 6. O-O {[%emt 0:00:22]} Qc7 {[%emt 0:00:06]} 7. Qe2 {[%emt 0:03:45]} h6 {[%emt 0:00:10]} 8. h3 {[%emt 0:00:23]} Nbd7 {[%emt 0:00:17]} 9. c3 {[%emt 0:02:40]} g5 {[%emt 0:00:26]} 10. d4 {[%emt 0:01:09]} Nf8 {[%emt 0:00:11]} 11. h4 {[%emt 0:08:01]} Bg4 {[%emt 0:05:53]} 12. dxe5 {[%emt 0:01:38]} dxe5 {[%emt 0:00:12]} 13. Qd3 {[%emt 0:00:15]} Rd8 {[%emt 0:01:41]} 14. Qc2 {[%emt 0:00:15]} Bxf3 {[%emt 0:01:28]} 15. Bxf3 {[%emt 0:00:04]} gxh4 {[%emt 0:00:33]} 16. gxh4 {[%emt 0:00:22]} Ng6 {[%emt 0:00:58]} 17. h5 {[%emt 0:00:39]} Nh4 {[%emt 0:00:13]} 18. Qe2 {[%emt 0:01:06]} Qd7 {[%emt 0:00:32]} 19. Kh2 {[%emt 0:00:34]} Rg8 {[%emt 0:02:12]} 20. Bxh6 {[%emt 0:03:27]} Nxh5 {[%emt 0:02:00]} 21. Be3 {[%emt 0:00:44]} Nf6 {[%emt 0:09:27]} 22. Rh1 {[%emt 0:05:56]} Nxf3+ {[%emt 0:01:39]} 23. Qxf3 {[%emt 0:00:33]} Ng4+ {[%emt 0:00:25]} 0-1

[Event "Stockholm Elo Challenge 2019"]
[Site "Stockholm"]
[Date "2019.06.01"]
[Round "6.3"]
[White "Pettersson, Alexander"]
[Black "Thiborg, Jesper"]
[Result "1-0"]
[ECO "D35"]
[WhiteElo "2045"]
[BlackElo "2085"]
[Annotator "NA"]
[PlyCount "53"]
[EventDate "2019.05.29"]
[EventType "swiss"]
[EventCountry "SWE"]
[SourceTitle "playchess.com"]
[Source "ChessBase"]
[SourceQuality "1"]
[TimeControl "40/5400+30:1800+30"]

1. d4 {[%emt 0:00:00]} d5 {[%emt 0:00:00]} 2. c4 {[%emt 0:00:02]} e6 {[%emt 0:00:00]} 3. Nc3 {[%emt 0:00:04]} Nf6 {[%emt 0:00:00]} 4. cxd5 {[%emt 0:00:05]} exd5 {[%emt 0:00:00]} 5. Bg5 {[%emt 0:00:08]} Be7 {[%emt 0:00:35]} 6. e3 {[%emt 0:00:13]} c6 {[%emt 0:00:18]} 7. Qc2 {[%emt 0:00:38]} Nbd7 {[%emt 0:01:40]} 8. Bd3 {[%emt 0:00:21]} Nf8 {[%emt 0:00:25]} 9. Nge2 {[%emt 0:04:23]} Bd7 {[%emt 0:06:26] D36: Queen's Gambit Declined: Exchange Variation: Main line (5 Bg5 c6 6 Qc2)} (9... Ne6 10. Bh4 g6 11. f3 b5 12. O-O O-O 13. Rad1 Re8 14. Qd2 a5 15. Bf2 Bd7 16. Rc1 Rc8 17. Rfe1 b4 18. Na4 c5 19. Nxc5 Nxc5 20. dxc5 Rxc5 {0-1 (56) Lenderman,A (2637)-Abasov,N (2627) Astana 2019}) 10. O-O {[%emt 0:00:53]} Ne6 {[%emt 0:01:05]} 11. Bxf6 $146 {[%emt 0:02:49]} ({Predecessor:} 11. Bh4 h6 12. f3 O-O 13. Rad1 Ne8 14. Bf2 Nd6 15. e4 dxe4 16. fxe4 Bg5 17. e5 {1-0 (34) Dutreuil,R (2130)-Sotelo,R (2034) Paris 2015}) 11... Bxf6 {[%emt 0:00:39]} 12. b4 {[%emt 0:01:17]} Rc8 {[%emt 0:03:04]} 13. Rab1 {[%emt 0:02:26]} Qe7 {[%emt 0:08:49]} 14. Rfc1 {[%emt 0:06:35]} Qd6 {[%emt 0:02:39]} 15. b5 {[%emt 0:11:56]} c5 {[%emt 0:12:05]} 16. dxc5 {[%emt 0:08:56]} Rxc5 {[%emt 0:02:03]} 17. Qb3 {[%emt 0:22:21]} O-O {[%emt 0:04:50]} 18. Rd1 {[%emt 0:10:00]} Rfc8 {[%emt 0:06:37] [#]} 19. Nxd5 $1 {[%emt 0:06:58]} Rxd5 $4 {[%emt 0:04:30] [#]} (19... Nf8 $16) 20. Bxh7+ $1 {[%emt 0:00:53]} Kxh7 {[%emt 0:00:09]} 21. Rxd5 {[%emt 0:00:44]} Qb6 {[%emt 0:06:32]} 22. Rxd7 {[%emt 0:01:54]} Kg8 {[%emt 0:00:57]} 23. Nf4 {[%emt 0:05:59]} Rc3 {[%emt 0:01:29]} 24. Qd5 {[%emt 0:00:57]} Nxf4 $18 {[%emt 0:05:59]} 25. exf4 {[%emt 0:03:58]} Rc2 {[%emt 0:01:12]} 26. Qxf7+ {[%emt 0:02:22]} Kh8 {[%emt 0:00:43]} 27. Qe8+ {[%emt 0:00:35]} 1-0

[Event "Stockholm Elo Challenge 2019"]
[Site "Stockholm"]
[Date "2019.06.01"]
[Round "6.4"]
[White "Bergqvist, Gustav 2004"]
[Black "Tran, Alva Ling"]
[Result "1-0"]
[ECO "D04"]
[WhiteElo "1751"]
[BlackElo "1616"]
[Annotator "NA"]
[PlyCount "37"]
[EventDate "2019.05.29"]
[EventType "swiss"]
[EventCountry "SWE"]
[SourceTitle "playchess.com"]
[Source "ChessBase"]
[SourceQuality "1"]
[TimeControl "40/5400+30:1800+30"]

1. d4 {[%emt 0:00:00]} d5 {[%emt 0:00:00]} 2. Nf3 {[%emt 0:00:00]} Nf6 {[%emt 0:00:00]} 3. e3 {[%emt 0:00:00]} c6 {[%emt 0:00:43]} 4. b3 {[%emt 0:00:00]} Bf5 {[%emt 0:01:03]} 5. Bd3 {[%emt 0:00:07]} Bg6 {[%emt 0:02:49]} 6. Bb2 {[%emt 0:00:23]} Nbd7 {[%emt 0:00:31]} 7. O-O {[%emt 0:00:18]} e6 {[%emt 0:00:10]} 8. Nbd2 {[%emt 0:01:12]} Bd6 {[%emt 0:00:26]} 9. Ne5 {[%emt 0:00:45]} O-O {[%emt 0:02:32]} 10. f4 {[%emt 0:01:34]} c5 {[%emt 0:03:38]} 11. Ndf3 {[%emt 0:03:20]} Rc8 {[%emt 0:08:01]} 12. Ng5 {[%emt 0:04:18]} Bxd3 {[%emt 0:08:04]} 13. cxd3 {[%emt 0:04:28]} cxd4 {[%emt 0:02:53]} 14. Bxd4 {[%emt 0:01:30]} Bc5 {[%emt 0:02:57]} 15. Nxd7 {[%emt 0:01:45]} Qxd7 {[%emt 0:09:16]} 16. Bxf6 {[%emt 0:01:00]} Bxe3+ {[%emt 0:01:16]} 17. Kh1 {[%emt 0:00:01]} h6 {[%emt 0:06:55]} 18. Qg4 {[%emt 0:03:43]} g6 {[%emt 0:07:48]} 19. Qh3 {[%emt 0:01:33]} 1-0

[Event "Stockholm Elo Challenge 2019"]
[Site "Stockholm"]
[Date "2019.06.02"]
[Round "7.1"]
[White "Karlsson, Lars"]
[Black "Helin, Mikael"]
[Result "1-0"]
[ECO "C41"]
[WhiteElo "2448"]
[BlackElo "1898"]
[Annotator "ChessBase"]
[PlyCount "123"]
[EventDate "2019.05.29"]
[EventType "swiss"]
[EventCountry "SWE"]
[SourceTitle "playchess.com"]
[Source "ChessBase"]
[SourceQuality "1"]
[TimeControl "40/5400+30:1800+30"]

1. Nf3 {[%emt 0:01:39]} d6 {[%emt 0:05:41]} 2. e4 {[%emt 0:01:40]} e5 {[%emt 0:06:17]} 3. d4 {[%emt 0:00:14]} Nd7 {[%emt 0:00:17]} 4. Nc3 {[%emt 0:00:27]} Ngf6 {[%emt 0:00:13]} 5. Bc4 {[%emt 0:00:08]} Be7 {[%emt 0:00:11]} 6. O-O {[%emt 0:00:59]} h6 {[%emt 0:00:06]} 7. a4 {[%emt 0:00:14]} a5 {[%emt 0:00:06]} 8. Re1 {[%emt 0:00:37]} c6 {[%emt 0:00:09]} 9. Bf1 {[%emt 0:03:36]} g5 {[%emt 0:03:17]} 10. d5 {[%emt 0:02:09]} Qc7 {[%emt 0:00:08]} 11. Nd2 {[%emt 0:00:28]} Nf8 {[%emt 0:00:31]} 12. Nc4 {[%emt 0:00:10]} Ng6 {[%emt 0:05:53]} 13. Be3 {[%emt 0:06:33]} c5 {[%emt 0:02:08]} 14. Bd2 {[%emt 0:00:42]} Bd7 {[%emt 0:02:18]} 15. Ne3 {[%emt 0:01:54]} Nf4 {[%emt 0:03:18]} 16. Bb5 {[%emt 0:04:43]} Kf8 {[%emt 0:05:58]} 17. Bxd7 {[%emt 0:00:59]} Qxd7 {[%emt 0:00:28]} 18. Nc4 {[%emt 0:02:13]} Bd8 {[%emt 0:01:01]} 19. Nb5 {[%emt 0:01:10]} Ra6 {[%emt 0:02:48]} 20. Bc3 {[%emt 0:07:19]} Ne8 {[%emt 0:07:28]} 21. g3 {[%emt 0:08:55]} Ng6 {[%emt 0:01:37]} 22. Ne3 {[%emt 0:03:22]} h5 {[%emt 0:04:58]} 23. Nf5 {[%emt 0:08:25]} Be7 {[%emt 0:09:58]} 24. Qd3 {[%emt 0:01:25]} Ra8 {[%emt 0:02:01]} 25. Na3 {[%emt 0:07:44]} Bd8 {[%emt 0:11:35]} 26. Qb5 {[%emt 0:01:58]} Qc7 {[%emt 0:00:02]} 27. Nc4 {[%emt 0:00:44]} Ra6 {[%emt 0:00:31]} 28. Ra3 {[%emt 0:02:27]} f6 {[%emt 0:02:59]} 29. Rb3 {[%emt 0:02:43]} Rh7 {[%emt 0:00:13]} 30. Bd2 {[%emt 0:00:13]} h4 {[%emt 0:02:58]} 31. Nce3 {[%emt 0:00:50]} Qc8 {[%emt 0:01:31]} 32. Qe2 {[%emt 0:05:00]} hxg3 {[%emt 0:02:28]} 33. fxg3 {[%emt 0:01:23]} Qd7 {[%emt 0:02:35]} 34. Rb5 {[%emt 0:02:02]} Qc8 {[%emt 0:06:13]} 35. Nc4 {[%emt 0:01:50]} Ne7 {[%emt 0:04:18]} 36. Rf1 {[%emt 0:03:30]} Nxf5 {[%emt 0:01:05]} 37. Rxf5 {[%emt 0:00:12]} Ng7 {[%emt 0:01:05]} 38. Rf2 {[%emt 0:00:52]} Kg8 {[%emt 0:00:14]} 39. Qf3 {[%emt 0:01:47]} g4 {[%emt 0:01:02]} 40. Qe2 {[%emt 0:00:12]} Ne8 {[%emt 0:01:51]} 41. Ne3 {[%emt 0:34:29]} Nc7 {[%emt 0:11:30]} 42. Rb3 {[%emt 0:00:00]} Rg7 {[%emt 0:00:44]} 43. Nf5 {[%emt 0:00:00]} Rg6 {[%emt 0:00:38]} 44. h3 {[%emt 0:00:00]} Ne8 {[%emt 0:01:24]} 45. Qb5 {[%emt 0:00:00]} Ng7 {[%emt 0:03:53]} 46. Qxb7 {[%emt 0:00:00]} Qxb7 {[%emt 0:03:24]} 47. Rxb7 {[%emt 0:00:00]} Nxf5 {[%emt 0:01:10]} 48. exf5 {[%emt 0:00:00]} Rg7 {[%emt 0:00:08]} 49. Rb8 {[%emt 0:00:00]} Rd7 {[%emt 0:00:30]} 50. hxg4 {[%emt 0:00:00]} Kg7 {[%emt 0:00:18]} 51. Rh2 {[%emt 0:00:00]} Rb6 {[%emt 0:01:22]} 52. Ra8 {[%emt 0:00:00]} Rxb2 {[%emt 0:00:57]} 53. Bxa5 {[%emt 0:00:00]} Rb1+ {[%emt 0:02:19]} 54. Kg2 {[%emt 0:00:00]} Rc1 {[%emt 0:00:19]} 55. Rxd8 {[%emt 0:00:00]} Rxd8 {[%emt 0:01:23]} 56. Bxd8 {[%emt 0:00:00]} Rxc2+ {[%emt 0:00:36]} 57. Kh3 {[%emt 0:00:00]} Rc4 {[%emt 0:00:34]} 58. Ra2 {[%emt 0:00:00]} Rd4 {[%emt 0:04:05]} 59. a5 {[%emt 0:00:00]} e4 {[%emt 0:00:08]} 60. g5 {[%emt 0:00:00]} fxg5 {[%emt 0:00:37]} 61. Bxg5 {[%emt 0:00:00]} Rxd5 {[%emt 0:06:26]} 62. a6 1-0

[Event "Stockholm Elo Challenge 2019"]
[Site "Stockholm"]
[Date "2019.06.02"]
[Round "7.2"]
[White "Bergqvist, Gustav 2004"]
[Black "Pettersson, Alexander"]
[Result "0-1"]
[ECO "D04"]
[WhiteElo "1751"]
[BlackElo "2045"]
[Annotator "NA"]
[PlyCount "99"]
[EventDate "2019.05.29"]
[EventType "swiss"]
[EventCountry "SWE"]
[SourceTitle "playchess.com"]
[Source "ChessBase"]
[SourceQuality "1"]
[TimeControl "40/5400+30:1800+30"]

1. d4 {[%emt 0:00:00]} d5 {[%emt 0:08:22]} 2. Nf3 {[%emt 0:00:00]} Nf6 {[%emt 0:00:20]} 3. e3 {[%emt 0:00:00]} c5 {[%emt 0:00:19]} 4. b3 {[%emt 0:00:10]} cxd4 {[%emt 0:00:21]} 5. exd4 {[%emt 0:00:14]} Nc6 {[%emt 0:00:21]} (5... g6 6. Bb2 Bg7 7. Nbd2 O-O 8. Bd3 Nc6 9. a3 Nh5 10. O-O Nf4 11. Bb5 Bg4 12. h3 Bh5 13. Bxc6 bxc6 14. Re1 c5 15. Qc1 c4 16. Re3 {0-1 (46) Mamedyarov,S (2808)-Aronian,L (2764) Leuven 2018}) 6. Bb2 {[%emt 0:00:43] D04: Colle System} Bg4 {[%emt 0:00:38]} 7. Nbd2 {[%emt 0:00:41]} e6 {[%emt 0:01:47]} 8. Be2 {[%emt 0:02:10]} Qb6 {[%emt 0:03:12]} 9. O-O {[%emt 0:07:04]} Rc8 {[%emt 0:07:21]} 10. Rc1 $146 {[%emt 0:05:39]} ({Predecessor:} 10. c3 Be7 {½-½ (10) Glienke,M (2327)-Spivak,I (2375) Germany 2006}) 10... Bd6 {[%emt 0:02:13]} 11. c4 {[%emt 0:00:57]} Bb8 {[%emt 0:00:02]} 12. cxd5 {[%emt 0:01:05]} exd5 {[%emt 0:07:30]} 13. Ne5 {[%emt 0:08:49]} Bxe2 $1 {[%emt 0:02:32]} 14. Qxe2 {[%emt 0:00:43]} O-O {[%emt 0:00:29]} 15. Nxc6 {[%emt 0:00:53]} Rxc6 {[%emt 0:00:10]} 16. Nf3 {[%emt 0:03:38]} Re6 {[%emt 0:06:12]} 17. Qd3 {[%emt 0:02:50]} Qd6 {[%emt 0:00:46]} 18. g3 {[%emt 0:03:54]} Ne4 {[%emt 0:02:14]} 19. Nh4 {[%emt 0:05:15]} Rf6 {[%emt 0:08:14]} 20. Rc2 {[%emt 0:07:15]} Qd7 {[%emt 0:06:25]} 21. f3 $2 {[%emt 0:02:08]} (21. Nf3 $11 {and White stays safe.}) 21... Nxg3 {[%emt 0:06:55]} 22. Rff2 $2 {[%emt 0:08:48]} (22. hxg3 Bxg3 23. f4 Bxh4 24. f5) 22... Qh3 {[%emt 0:13:18]} (22... Nh5 $142 23. Qf1 Nf4) 23. hxg3 {[%emt 0:02:10]} Bxg3 {[%emt 0:11:16]} 24. Rh2 {[%emt 0:02:06]} Bxh2+ {[%emt 0:01:22]} 25. Rxh2 {[%emt 0:00:03]} Qg3+ {[%emt 0:00:43]} 26. Ng2 {[%emt 0:00:26]} Rg6 {[%emt 0:01:27]} 27. Qe2 {[%emt 0:02:21]} Rc8 {[%emt 0:01:29]} 28. Rh5 {[%emt 0:01:59]} h6 {[%emt 0:04:24]} 29. Rxd5 {[%emt 0:00:51]} Kh7 {[%emt 0:01:24]} (29... Re6 $19 30. Re5 Rxe5 31. dxe5 Qg6) 30. Rc5 {[%emt 0:01:01]} Rd8 {[%emt 0:00:59]} 31. Qf2 {[%emt 0:00:59]} Qh3 {[%emt 0:00:54]} 32. Re5 $19 {[%emt 0:02:04]} (32. f4 $17) 32... f6 {[%emt 0:00:40]} 33. Re7 {[%emt 0:02:23]} Rd5 {[%emt 0:00:48]} 34. Re2 {[%emt 0:02:36]} Rdg5 {[%emt 0:01:18]} 35. f4 {[%emt 0:01:14]} Rh5 {[%emt 0:00:31]} 36. Kf1 {[%emt 0:00:15]} Qg4 {[%emt 0:00:29]} 37. Ke1 {[%emt 0:00:41]} Rh2 {[%emt 0:00:30]} 38. d5 {[%emt 0:01:37]} Qd7 {[%emt 0:00:34]} 39. Qf3 {[%emt 0:01:15]} Rh1+ {[%emt 0:00:29]} 40. Kd2 {[%emt 0:01:20]} Rh3 {[%emt 0:00:30]} 41. Qe4 {[%emt 0:31:09]} f5 {[%emt 0:08:52]} 42. Qe5 {[%emt 0:00:00]} Rd6 {[%emt 0:07:35]} 43. Ne3 {[%emt 0:00:00]} Rxe3 {[%emt 0:00:35]} 44. Qxe3 {[%emt 0:00:00]} Rxd5+ {[%emt 0:00:14]} 45. Ke1 {[%emt 0:00:00]} Rd1+ {[%emt 0:04:17]} 46. Kf2 {[%emt 0:00:00]} Qd6 {[%emt 0:05:28]} 47. Qe5 {[%emt 0:00:00]} Qb6+ {[%emt 0:02:06]} 48. Re3 {[%emt 0:00:00]} Rd2+ {[%emt 0:02:37]} 49. Kg3 {[%emt 0:00:00]} Qg6+ 50. Kf3 0-1